[Event "Women Accentus DAQ Blitz 2022"]
[Site "Biel"]
[Date "2022.07.17"]
[Round "12.4"]
[White "Tamrazyan, Gohar"]
[Black "Ciarletta, Iris"]
[Result "0-1"]
[ECO "D00"]
[WhiteElo "1916"]
[BlackElo "1717"]
[Annotator "TA"]
[PlyCount "88"]
[EventDate "2022.07.17"]
[EventType "tourn"]
[EventCountry "SUI"]
[SourceTitle "playchess.com"]
[Source "ChessBase"]
[SourceQuality "1"]
[TimeControl "180+2"]

{[%evp 9,88,-20,8,0,41,10,35,54,49,40,64,-12,46,34,34,38,33,33,35,34,79,-53,97,95,266,275,264,203,238,225,331,322,313,276,340,211,250,246,237,241,262,205,211,222,251,212,358,212,270,258,240,220,258,163,163,163,290,263,300,254,239,99,29994,5814,29995,452,462,200,29954,0,560,24,14,-310,-282,-325,-333,-1738,-1603,-2831,-2518]} 1. d4 {[%emt 0:00:02]} Nf6 {[%emt 0:00:01]} 2. Nc3 {[%emt 0:00:00]} d5 {[%emt 0:00:06]} 3. Bf4 {[%emt 0:00:01]} e6 {[%emt 0:00:02]} 4. Nb5 {[%emt 0:00:01]} Na6 {[%emt 0:00:04]} 5. e3 {[%emt 0:00:01]} Bd7 {[%emt 0:00:09]} 6. Nf3 {[%emt 0:00:13] D00: 1 d4 d5: Unusual lines.} c6 {[%emt 0:00:02]} 7. Nc3 {[%emt 0:00:01] [#]} Nc7 $146 {[%emt 0:00:04]} ({Predecessor:} 7... Nh5 8. Bd3 b6 9. Bxa6 Bb4 10. Bd3 a6 11. O-O c5 12. Ne2 b5 13. dxc5 Bxc5 {0-1 (52) Salinas,E (723)-Newton,D (503) LSS email 2014}) 8. Ne5 {[%emt 0:00:13] White is slightly better.} Bb4 {[%emt 0:00:11]} 9. Bd3 {[%emt 0:00:05]} Nb5 {[%emt 0:00:14]} 10. Qd2 {[%emt 0:00:32]} (10. O-O $1 $14) 10... Ne4 {[%emt 0:00:16]} (10... Nh5 $11) 11. Bxe4 $14 {[%emt 0:00:07]} dxe4 {[%emt 0:00:02]} 12. a3 {[%emt 0:00:10]} Bxc3 {[%emt 0:00:03]} 13. bxc3 {[%emt 0:00:01]} f6 {[%emt 0:00:08]} 14. Nc4 {[%emt 0:00:12][%cal Be5c4,Bc4d6,Bd6b7,Bb7c5][%mdl 32]} O-O {[%emt 0:00:15][%cal Oe6e5]} 15. O-O {[%emt 0:00:15]} ({White should play} 15. a4 $16 Nc7 16. Nd6) 15... Nc7 {[%emt 0:00:14]} (15... e5 $1 $15 16. Bg3 Be6) 16. Nd6 $16 {[%emt 0:00:05][%csl LRb7,LRe4]} f5 $2 {[%emt 0:00:07]} (16... b6 $16) 17. Nxb7 $18 {[%emt 0:00:04]} Qc8 {[%emt 0:00:11]} 18. Nc5 {[%emt 0:00:04]} Nd5 {[%emt 0:00:03]} 19. Bd6 {[%emt 0:00:12]} Rd8 {[%emt 0:00:02]} (19... Rf7 $142 20. Rab1 Nb6) 20. c4 {[%emt 0:00:03]} Nb6 {[%emt 0:00:04]} 21. Qb4 {[%emt 0:00:15]} Be8 {[%emt 0:00:04]} 22. Be5 {[%emt 0:00:22]} Bf7 {[%emt 0:00:03]} 23. a4 {[%emt 0:00:07]} Nd7 {[%emt 0:00:04]} 24. Nxd7 {[%emt 0:00:06] [#] Black must now prevent Nc5.} Rxd7 {[%emt 0:00:03]} 25. Rfd1 {[%emt 0:00:02]} Rb7 {[%emt 0:00:02]} 26. Qc5 {[%emt 0:00:07]} h6 {[%emt 0:00:06]} 27. Rab1 {[%emt 0:00:06]} a6 {[%emt 0:00:06]} (27... Bh5 $142) 28. Rb3 {[%emt 0:00:05]} (28. a5 $142) 28... Raa7 {[%emt 0:00:05]} 29. Rdb1 {[%emt 0:00:02]} Rxb3 {[%emt 0:00:02]} 30. cxb3 {[%emt 0:00:01]} Rb7 {[%emt 0:00:04]} 31. Qa3 {[%emt 0:00:03]} Qd7 {[%emt 0:00:05]} 32. b4 {[%emt 0:00:01]} g5 {[%emt 0:00:06]} (32... Be8 $142 33. Qb2 Bh5) 33. b5 {[%emt 0:00:06]} axb5 {[%emt 0:00:02]} 34. axb5 {[%emt 0:00:01]} cxb5 {[%emt 0:00:02]} 35. Qa8+ {[%emt 0:00:09]} (35. h3 $18 {has better winning chances.}) 35... Kh7 $2 {[%emt 0:00:07][%mdl 8192] [#]} (35... Be8 $16) 36. Qh8+ {[%emt 0:00:03]} Kg6 {[%emt 0:00:01]} 37. Qg7+ {[%emt 0:00:02]} (37. Bg7 $142 f4 38. Qxh6+ Kf5 39. Bf6 e5 40. Qxg5+ Ke6 41. Qxe5#) 37... Kh5 {[%emt 0:00:01]} 38. h3 {[%emt 0:00:05]} (38. Rxb5 $142 Ra7 39. h3) 38... bxc4 $2 {[%emt 0:00:04]} (38... Be8 $18) 39. Rf1 $2 {[%emt 0:00:06]} (39. Rxb7 {mates} Qxb7 40. Bd6 Qb1+ 41. Kh2 Bg6 42. Bf8 Qb8+ 43. g3 Qxf8 44. Qxf8) 39... Bg6 $2 {[%emt 0:00:05][%mdl 8192]} (39... Be8 $1 $11 40. g4+ fxg4 41. hxg4+ Kxg4 42. Qxh6 Qh7 43. Qxe6+ Kf3) 40. Qh8 $2 {[%emt 0:00:05]} (40. g4+ $1 $18 fxg4 41. hxg4+ Kxg4 42. Qxg6) 40... Qe8 $11 {[%emt 0:00:03]} 41. g4+ $2 {[%emt 0:00:03][%mdl 8192]} (41. Qf6 $11) 41... fxg4 $19 {[%emt 0:00:03]} 42. hxg4+ {[%emt 0:00:01]} Kxg4 {[%emt 0:00:04]} 43. Qxh6 $2 {[%emt 0:00:01]} (43. Qf6 Bf5 44. Kg2 (44. Qxh6 $2 Rh7 $19)) 43... Rh7 {[%emt 0:00:06]} 44. f3+ {[%emt 0:00:01]} exf3 {[%emt 0:00:05] Quite a comeback for Black.  Weighted Error Value: White=1.19/Black=0.90} 0-1

[Event "Women Accentus DAQ Blitz 2022"]
[Site "Biel"]
[Date "2022.07.17"]
[Round "13.1"]
[White "Tamrazyan, Gohar"]
[Black "Cornileau, Juliette"]
[Result "0-1"]
[ECO "D00"]
[WhiteElo "1916"]
[BlackElo "1900"]
[Annotator "TA"]
[PlyCount "80"]
[EventDate "2022.07.17"]
[EventType "tourn"]
[EventCountry "SUI"]
[SourceTitle "playchess.com"]
[Source "ChessBase"]
[SourceQuality "1"]
[TimeControl "180+2"]

{[%evp 9,80,-11,0,-3,7,7,8,-27,-27,-25,-10,-44,-8,-39,-43,-47,-43,-43,-48,-208,-204,-193,-207,-222,-111,-173,-112,-134,-95,-127,-106,-200,-200,-467,-456,-467,-462,-460,-458,-457,-455,-455,-435,-655,-663,-677,-671,-683,-672,-725,-705,-742,-729,-762,-739,-782,-768,-845,-849,-5402,-1137,-1073,-1066,-3411,-2234,-29949,-6360,-6195,-6179,-6207,-6193,-6179,-6145]} 1. d4 {[%emt 0:00:01] Marin,M} Nf6 {[%emt 0:00:01]} 2. Nc3 {[%emt 0:00:01]} d5 {[%emt 0:00:05]} 3. Bf4 {[%emt 0:00:01]} e6 {[%emt 0:00:07]} 4. Nb5 {[%emt 0:00:01]} Na6 {[%emt 0:00:09]} 5. e3 {[%emt 0:00:01]} c6 {[%emt 0:00:08]} 6. Nc3 {[%emt 0:00:01] D00: 1 d4 d5: Unusual lines.} Nc7 {[%emt 0:00:07]} 7. a3 {[%emt 0:00:03]} Bd6 {[%emt 0:00:04] [#]} 8. Nh3 $146 {[%emt 0:00:11] The position is equal.} ({Predecessor:} 8. Nf3 Bxf4 9. exf4 Qd6 10. Ne5 b6 11. Qf3 c5 12. Nb5 Nxb5 13. Bxb5+ Bd7 14. Nxd7 Nxd7 {1-0 (42) Jobava,B (2665)-Topalov,V (2768) Baku 2016 CBM 175 [Marin,M]}) 8... O-O {[%emt 0:00:06]} 9. Bd3 {[%emt 0:00:03]} Re8 {[%emt 0:00:05]} 10. O-O {[%emt 0:00:03]} (10. Be5 {looks sharper.} c5 11. Ng5 h6 12. Nf3) 10... Qe7 {[%emt 0:00:24]} 11. Kh1 {[%emt 0:00:13]} e5 {[%emt 0:00:05]} 12. dxe5 {[%emt 0:00:06]} Bxe5 {[%emt 0:00:01]} 13. Bxe5 {[%emt 0:00:34]} Qxe5 {[%emt 0:00:02]} 14. Nf4 $2 {[%emt 0:00:07] [#]} (14. Ng1 $15) 14... d4 $1 $19 {[%emt 0:00:21]} ({Inferior is} 14... g5 15. Nh5 $11) 15. Nce2 {[%emt 0:00:31]} dxe3 {[%emt 0:00:01]} 16. fxe3 {[%emt 0:00:01]} Qxe3 {[%emt 0:00:09]} (16... Ng4 $19 17. Qd2 Nxe3) 17. Rf3 {[%emt 0:00:01]} (17. Nc3 $17) 17... Qc5 {[%emt 0:00:04]} ({Better is} 17... Qe5 $19 {White must now prevent ...g5.} 18. Qd2 Qxb2) 18. h3 {[%emt 0:00:08]} Be6 {[%emt 0:00:19] Black is more active.} 19. Nxe6 {[%emt 0:00:13]} Nxe6 {[%emt 0:00:01]} ({And not} 19... fxe6 20. Ng3 $15) ({Not} 19... Rxe6 20. Nd4 $15) 20. Nf4 {[%emt 0:00:06]} (20. b4 $17 Qe5 21. Rf5) 20... Ng5 {[%emt 0:00:23]} 21. Rg3 {[%emt 0:00:13]} (21. Rf1 {keeps fighting.}) 21... Nge4 {[%emt 0:00:22]} 22. Bxe4 {[%emt 0:00:02]} Nxe4 {[%emt 0:00:01]} 23. Rf3 {[%emt 0:00:47]} Nf2+ {[%emt 0:00:01]} 24. Rxf2 {[%emt 0:00:01]} Qxf2 {[%emt 0:00:01]} 25. Nd3 {[%emt 0:00:07]} Qg3 {[%emt 0:00:02]} 26. Qf3 {[%emt 0:00:02]} (26. Qd2 $142) 26... Qxf3 {[%emt 0:00:02]} 27. gxf3 {[%emt 0:00:01][%mdl 4096] Endgame KRR-KRN} Re2 {[%emt 0:00:01]} 28. Rc1 {[%emt 0:00:02]} Rae8 {[%emt 0:00:10]} 29. f4 {[%emt 0:00:06]} f6 {[%emt 0:00:10]} 30. b4 {[%emt 0:00:04]} R8e3 {[%emt 0:00:06]} 31. Nc5 {[%emt 0:00:03]} Rxh3+ {[%emt 0:00:04]} 32. Kg1 {[%emt 0:00:00]} b6 {[%emt 0:00:06]} 33. Nd3 {[%emt 0:00:03]} Rhh2 {[%emt 0:00:04]} 34. a4 {[%emt 0:00:06]} Rhg2+ {[%emt 0:00:02]} 35. Kf1 {[%emt 0:00:00]} Rxc2 {[%emt 0:00:01]} 36. Rxc2 {[%emt 0:00:01]} Rxc2 {[%emt 0:00:01]} 37. a5 {[%emt 0:00:03]} bxa5 {[%emt 0:00:01]} (37... Rd2 $142 38. Ne1 Rd4 39. axb6 axb6 40. Ke2 Re4+ 41. Kf2 {[#]} Rxe1 $1 {[%mdl 512]} 42. Kxe1 h5 43. Kf2 h4 44. Kg2 c5 45. Kf3 cxb4 46. Ke4 h3 47. Kf3 b3 48. Kg3 b2 49. Kxh3 b1=Q 50. Kg2 Qd3 51. Kh2 b5 52. f5 b4 53. Kg2 b3 54. Kh2 b2 55. Kg2 b1=Q 56. Kh2 Qbc2+ 57. Kh1 Qf1#) 38. bxa5 {[%emt 0:00:01] Black is clearly winning.} Ra2 {[%emt 0:00:03]} 39. Nb4 {[%emt 0:00:02]} Rxa5 {[%emt 0:00:01]} 40. Nxc6 {[%emt 0:00:00]} Ra4 {[%emt 0:00:05] Weighted Error Value: White=0.57/Black=0.12 (very precise)} 0-1

[Event "Women Accentus DAQ Blitz 2022"]
[Site "Biel"]
[Date "2022.07.17"]
[Round "13.3"]
[White "Moracchini, Margaux"]
[Black "Avilova, Yulia"]
[Result "0-1"]
[ECO "B22"]
[WhiteElo "1937"]
[BlackElo "1646"]
[Annotator "TA"]
[PlyCount "81"]
[EventDate "2022.07.17"]
[EventType "tourn"]
[EventCountry "SUI"]
[SourceTitle "playchess.com"]
[Source "ChessBase"]
[SourceQuality "1"]
[TimeControl "180+2"]

{[%evp 9,81,54,72,33,64,33,31,29,11,6,52,46,37,27,90,71,116,31,68,32,74,23,27,0,40,-4,-6,-6,40,-13,0,0,183,52,179,197,169,-16,-13,-62,-15,-95,0,-184,-204,-260,-254,-370,-365,-621,-606,-1209,-1204,-2583,-2175,-2462,-1810,-2056,-1764,-2972,-2747,-29989,-29989,-29991,-29992,-29996,-29997,-29997,-29993,-29993,-29994,-29994,-29995,-29996]} 1. e4 {[%emt 0:00:01]} c5 {[%emt 0:00:01]} 2. c3 {[%emt 0:00:02]} d6 {[%emt 0:00:01]} 3. d4 {[%emt 0:00:06]} cxd4 {[%emt 0:00:01]} 4. cxd4 {[%emt 0:00:01]} Nf6 {[%emt 0:00:01]} 5. Nc3 {[%emt 0:00:04]} e6 {[%emt 0:00:01]} 6. g3 {[%emt 0:00:09] B22: Sicilian: 2 c3.} a6 {[%emt 0:00:01] [#]} 7. a4 $146 {[%emt 0:00:05]} ({Predecessor:} 7. Bg2 Be7 8. Nge2 Nbd7 9. O-O O-O 10. h3 Rb8 11. f4 b5 12. e5 Ne8 13. Be3 {1-0 (53) Szabo,J (2190)-Balazs,A (2053) Hungary 2008}) 7... Be7 {[%emt 0:00:02]} 8. Bg2 {[%emt 0:00:01] White is slightly better.} O-O {[%emt 0:00:02]} 9. Nge2 {[%emt 0:00:01]} Qc7 {[%emt 0:00:09]} (9... Nc6 $11) 10. O-O $14 {[%emt 0:00:03]} Nc6 {[%emt 0:00:01]} 11. h3 {[%emt 0:00:04]} (11. Be3 {seems wilder.} Ng4 12. Bf4 Qd8 13. h3) 11... b6 {[%emt 0:00:01]} (11... d5 $11 {remains equal.}) 12. Be3 {[%emt 0:00:15]} Bb7 {[%emt 0:00:01][%cal Od6d5]} 13. f4 {[%emt 0:00:09]} (13. Rc1 $16) 13... e5 {[%emt 0:00:14]} 14. d5 {[%emt 0:00:11]} Nb8 {[%emt 0:00:07]} 15. fxe5 {[%emt 0:00:12]} (15. Rc1 $16 {[%cal Oc3b5] Black must now prevent Nb5!} Nbd7 16. fxe5 Nxe5 17. Nb5 $1 {[%mdl 512]}) 15... dxe5 $11 {[%emt 0:00:03]} 16. Rc1 {[%emt 0:00:03][%cal Oc3b5] Strongly threatening Nb5!} Qd8 {[%emt 0:00:03]} (16... Bc5 $5 {[%cal Rc5e3]} 17. Qd3 Nbd7 $14) 17. Qb3 {[%emt 0:00:07]} Nbd7 {[%emt 0:00:03]} 18. Kh2 {[%emt 0:00:09]} Nc5 {[%emt 0:00:01]} (18... Rc8 $11) 19. Qc2 {[%emt 0:00:12]} ({Better is} 19. Bxc5 $14 Bxc5 20. a5) 19... Rc8 {[%emt 0:00:06]} 20. g4 {[%emt 0:00:13]} Qd7 $2 {[%emt 0:00:08]} (20... Ne8 $11) 21. Ng3 {[%emt 0:00:08]} (21. g5 $18 Ne8 22. b4) 21... b5 {[%emt 0:00:04]} (21... a5 $14) 22. axb5 $18 {[%emt 0:00:02]} axb5 {[%emt 0:00:01]} 23. Qe2 $2 {[%emt 0:00:24]} (23. g5 $18 Ne8 24. h4) 23... b4 $11 {[%emt 0:00:06] ...Ba6 is the strong threat.} 24. Bxc5 {[%emt 0:00:09]} (24. Nb5 $11) 24... Bxc5 {[%emt 0:00:03]} (24... Rxc5 $15 {is more appropriate.} 25. Nb1 Rxc1 26. Rxc1 Ne8) 25. Nd1 {[%emt 0:00:15] [#]} (25. Rxf6 $11 {keeps the balance.} bxc3 26. Rf3) 25... Qd6 {[%emt 0:00:11] Black is more active.} ({Black should try} 25... Bg1+ $1 $17 26. Rxg1 Rxc1) 26. g5 $2 {[%emt 0:00:06] Black keeps a firm grip on the game.} (26. Nf5 $11 {and White is okay.} Qa6 27. Qe1) 26... Ba6 $19 {[%emt 0:00:05]} 27. Qf3 {[%emt 0:00:08]} Bxf1 {[%emt 0:00:02] This bishop pair is nice.} 28. gxf6 {[%emt 0:00:06]} (28. Bxf1 $142 Nxd5 29. exd5 Bg1+ 30. Kxg1 Rxc1 31. Nf2) 28... Bxg2 {[%emt 0:00:04]} 29. Qxg2 {[%emt 0:00:01]} (29. Kxg2 g6 30. Ra1) 29... Qxf6 {[%emt 0:00:02][%cal Oc5g1] aiming for ...Bg1+!} 30. Nh5 {[%emt 0:00:09]} Qh6 {[%emt 0:00:03][%csl LRc1,LRh5] Threatens to win with ...Bg1+.} 31. Ng3 {[%emt 0:00:04]} Qxc1 {[%emt 0:00:04]} 32. Nf5 {[%emt 0:00:02]} Qf4+ {[%emt 0:00:05]} 33. Kh1 {[%emt 0:00:03]} g5 {[%emt 0:00:04]} 34. h4 {[%emt 0:00:04]} f6 {[%emt 0:00:04][%cal Bf7f6,Bf6g5][%mdl 32]} 35. hxg5 {[%emt 0:00:06]} fxg5 {[%emt 0:00:01] Black mates.} 36. Nh6+ {[%emt 0:00:10]} Kh8 {[%emt 0:00:05]} 37. b3 {[%emt 0:00:02]} Qh4+ {[%emt 0:00:04]} 38. Qh2 {[%emt 0:00:01]} Rf1+ {[%emt 0:00:09]} 39. Kg2 {[%emt 0:00:02]} Rg1+ {[%emt 0:00:09]} 40. Qxg1 {[%emt 0:00:03]} Bxg1 {[%emt 0:00:01]} 41. Kxg1 {[%emt 0:00:01] Weighted Error Value: White=1.17/Black=0.57} 0-1

[Event "Women Accentus DAQ Blitz 2022"]
[Site "Biel"]
[Date "2022.07.17"]
[Round "13.4"]
[White "Sumarriva Paulin, Laura"]
[Black "Keymer, Cecilia"]
[Result "1-0"]
[ECO "C54"]
[WhiteElo "1913"]
[BlackElo "1652"]
[Annotator "TA"]
[PlyCount "81"]
[EventDate "2022.07.17"]
[EventType "tourn"]
[EventCountry "SUI"]
[SourceTitle "playchess.com"]
[Source "ChessBase"]
[SourceQuality "1"]
[TimeControl "180+2"]

{[%evp 14,81,19,23,14,4,31,30,42,41,41,35,57,52,72,70,74,27,31,25,60,62,72,34,86,75,194,67,96,86,96,28,57,64,75,62,70,59,195,0,0,0,0,-22,-11,-33,634,-404,1202,1180,1141,1124,1239,1237,1245,1221,1864,2052,29989,1446,1760,1780,1713,1679,29986,29984,29989,29990,29992,29993]} 1. e4 {[%emt 0:00:04]} e5 {[%emt 0:00:00]} 2. Bc4 {[%emt 0:00:01]} Nc6 {[%emt 0:00:03]} 3. d3 {[%emt 0:00:01]} Bc5 {[%emt 0:00:03]} 4. Nf3 {[%emt 0:00:03]} Nf6 {[%emt 0:00:03]} 5. c3 {[%emt 0:00:01]} a6 {[%emt 0:00:10]} 6. h3 {[%emt 0:00:04]} d6 {[%emt 0:00:02]} 7. Bb3 {[%emt 0:00:03]} Ba7 {[%emt 0:00:06]} 8. Nbd2 {[%emt 0:00:04][%cal Bb1d2,Bd2f1,Bf1g3][%mdl 32]} h6 {[%emt 0:00:06] C54: Giuoco Piano: 4 c3 Nf6, main lines with 5 d4 and 5 d3.} 9. Nf1 {[%emt 0:00:04]} Ne7 {[%emt 0:00:16]} 10. Ng3 {[%emt 0:00:04]} Ng6 {[%emt 0:00:01] White has an edge.} 11. O-O {[%emt 0:00:16]} O-O {[%emt 0:00:02]} 12. d4 {[%emt 0:00:20]} exd4 {[%emt 0:00:27]} 13. cxd4 {[%emt 0:00:02]} Re8 {[%emt 0:00:06]} 14. Re1 {[%emt 0:00:02]} Be6 {[%emt 0:00:23] [#]} 15. Qc2 $146 {[%emt 0:00:07]} (15. Bd2 $16) ({Predecessor:} 15. Bc2 c5 16. d5 Bd7 17. b3 b5 18. Bb2 c4 19. bxc4 bxc4 20. Bc3 Rb8 21. Qd2 {1-0 (78) Krause,B (2434)-Kirchner,T (2311) Magdeburg 2019}) 15... Bxb3 $11 {[%emt 0:00:16]} 16. Qxb3 {[%emt 0:00:03]} Rb8 {[%emt 0:00:10]} 17. Bd2 {[%emt 0:00:33]} Qd7 {[%emt 0:00:08]} 18. Bc3 {[%emt 0:00:06]} Re7 {[%emt 0:00:19]} ({Black should try} 18... d5 $14) 19. Rad1 {[%emt 0:00:03]} b5 {[%emt 0:00:18]} (19... d5 $16) 20. e5 {[%emt 0:00:21]} (20. d5 $1 $18) 20... Ne8 {[%emt 0:00:19][%cal Ob5b4]} 21. a3 {[%emt 0:00:12]} c5 {[%emt 0:00:12]} 22. exd6 {[%emt 0:00:08]} (22. dxc5 $16 Bxc5 23. Bb4) 22... Rxe1+ {[%emt 0:00:03]} 23. Rxe1 {[%emt 0:00:01]} Qxd6 {[%emt 0:00:06][%cal Rc5d4]} 24. Nf5 {[%emt 0:00:11]} Qd7 {[%emt 0:00:05]} 25. g4 $36 {[%emt 0:00:11][%mdl 2048] Threatens to win with Ne5. White fights for an advantage. 0x0.001b8328a852dp-1022s more active pieces.} cxd4 {[%emt 0:00:01] [#]} (25... c4 $14 26. Qd1 Nc7) 26. Bxd4 $2 {[%emt 0:00:02]} ({Not} 26. N3xd4 Rd8 $11) (26. Bb4 $1 $18 Kh7 27. Ne7) 26... Bxd4 {[%emt 0:00:01]} 27. N3xd4 {[%emt 0:00:01]} Nf6 {[%emt 0:00:02]} 28. Qb4 {[%emt 0:00:11]} Rd8 {[%emt 0:00:02]} 29. Nf3 {[%emt 0:00:04]} Nf4 $2 {[%emt 0:00:06][%mdl 8192]} 30. Kh2 $4 {[%emt 0:00:05][%mdl 8192]} (30. Qxf4 $18 {and life is good for White.} Re8 {[#]} 31. Nxh6+ $1 {[%mdl 512]} gxh6 32. Qxf6) 30... Qd5 $4 {[%emt 0:00:03][%mdl 8192]} 31. Ne7+ $18 {[%emt 0:00:04]} Kh7 {[%emt 0:00:02]} 32. Nxd5 {[%emt 0:00:01]} N4xd5 {[%emt 0:00:01]} 33. Qc5 {[%emt 0:00:04]} Rb8 {[%emt 0:00:03]} 34. Ne5 {[%emt 0:00:02]} Nf4 {[%emt 0:00:01]} 35. Nxf7 {[%emt 0:00:02] Threatening mate with Qf5+.} Rf8 {[%emt 0:00:02]} 36. Ne5 {[%emt 0:00:03]} (36. Qxf8 $142 Ng6 37. Qa8 h5 38. Qxa6 Nh4 39. Kg3 Ng6 40. Qxb5 h4+ 41. Kh2) 36... Re8 {[%emt 0:00:01]} 37. Nf3 {[%emt 0:00:02][%cal Be5f3,Bf3e1,Be1f3,Bf3h4][%mdl 32]} Rxe1 {[%emt 0:00:01]} 38. Nxe1 {[%emt 0:00:01]} Ne2 {[%emt 0:00:02]} 39. Nf3 {[%emt 0:00:02] White mates.} Nf4 {[%emt 0:00:04]} 40. Qf5+ {[%emt 0:00:02]} Ng6 {[%emt 0:00:02]} 41. Nh4 {[%emt 0:00:01] Weighted Error Value: White=0.58/Black=1.02} 1-0

[Event "Women Accentus DAQ Blitz 2022"]
[Site "Biel"]
[Date "2022.07.17"]
[Round "14.1"]
[White "Cornileau, Juliette"]
[Black "Sumarriva Paulin, Laura"]
[Result "0-1"]
[ECO "D20"]
[WhiteElo "1900"]
[BlackElo "1913"]
[Annotator "TA"]
[PlyCount "32"]
[EventDate "2022.07.17"]
[EventType "tourn"]
[EventCountry "SUI"]
[SourceTitle "playchess.com"]
[Source "ChessBase"]
[SourceQuality "1"]
[TimeControl "180+2"]

{[%evp 9,32,-60,343,-45,-39,-197,-92,-96,-101,-209,-91,-139,-122,-138,-36,-46,-3,-10,13,25,14,-26,-21,-656,-664]} 1. d4 {[%emt 0:00:02]} d5 {[%emt 0:00:01]} 2. c4 {[%emt 0:00:00]} dxc4 {[%emt 0:00:01]} 3. e4 {[%emt 0:00:03]} e5 {[%emt 0:00:02]} 4. d5 {[%emt 0:00:03]} Nf6 {[%emt 0:00:01]} 5. Nc3 {[%emt 0:00:08]} Bb4 $2 {[%emt 0:00:02][%mdl 8192]} (5... b5 $1 $15 {keeps the upper hand.}) 6. Qc2 $2 {[%emt 0:00:07] [#] D20: Queen's Gambit Accepted: 3 e3 and 3 e4.} (6. Qa4+ $18 Nc6 7. dxc6 Bxc3+ 8. bxc3) 6... c6 $146 {[%emt 0:00:07][%cal Rc6d5]} ({Predecessor:} 6... O-O 7. Nf3 Bxc3+ 8. bxc3 Qd6 9. Bxc4 a6 10. a4 Ng4 11. O-O Qg6 12. h3 Nf6 13. Nxe5 Qxe4 14. Qxe4 Nxe4 {1-0 (47) Knayer,B-Braeutigam,J freechess.de 2016}) 7. dxc6 {[%emt 0:00:40]} ({White should try} 7. Bxc4 $15 cxd5 8. exd5) 7... Nxc6 {[%emt 0:00:01]} (7... b5 $1 $19 8. Bd2 Nxc6 9. Nxb5 Bxd2+ 10. Qxd2 Qxd2+ 11. Kxd2 O-O 12. Bxc4 Rb8) 8. Bxc4 $17 {[%emt 0:00:03] Black is better.} O-O {[%emt 0:00:07] ...Nd4 is the strong threat.} 9. a3 {[%emt 0:00:08]} (9. Bg5 $17) 9... Ba5 {[%emt 0:00:29]} (9... Nd4 $19 {is more deadly.} 10. Qd3 b5 11. axb4 bxc4) 10. Nge2 {[%emt 0:00:07]} (10. Bg5 $142) 10... Nd4 $36 {[%emt 0:00:12][%mdl 2048] Black has strong initiative.} 11. Qd3 {[%emt 0:00:13] [#]} Nxe2 {[%emt 0:00:31] Black is more active.} ({Black should play} 11... Nxe4 $1 $17 {[%mdl 512]} 12. O-O (12. Qxe4 $2 Bf5 $19) 12... Nxc3 13. bxc3 Bf5) 12. Qxe2 $15 {[%emt 0:00:08]} Qc7 {[%emt 0:00:14] Strongly threatening ...Bxc3+.} 13. O-O {[%emt 0:00:08]} Be6 {[%emt 0:00:08]} 14. Bxe6 {[%emt 0:00:11]} fxe6 {[%emt 0:00:01]} 15. Nb5 {[%emt 0:00:11]} Qc6 {[%emt 0:00:12]} 16. Re1 $2 {[%emt 0:00:48][%mdl 8192]} Bxe1 {[%emt 0:00:04] Weighted Error Value: White=1.26/Black=1.08} 0-1